[Event "45th FIDE Womens Olympiad 2024"]
[Site "Budapest"]
[Date "2024.09.12"]
[Round "2.77"]
[White "Kanyamarala, Trisha"]
[Black "Pham, Le Thao Nguyen"]
[Result "0-1"]
[ECO "E11"]
[WhiteElo "2179"]
[BlackElo "2380"]
[Annotator "TA"]
[PlyCount "70"]
[EventDate "2024.09.05"]
[EventType "team-tourn"]
[EventCountry "HUN"]
[SourceTitle "playchess.com"]
[Source "ChessBase"]
[SourceQuality "1"]
[WhiteTeam "Ireland"]
[BlackTeam "Vietnam"]
[WhiteTeamCountry "IRL"]
[BlackTeamCountry "VIE"]
[TimeControl "40/5400+30:1800+30"]

{[%evp 11,70,8,27,24,25,29,30,24,35,31,49,43,61,45,71,72,69,72,69,31,23,23,24,18,26,26,23,0,13,13,4,-8,-5,-17,0,-36,-13,-14,-19,-15,0,0,0,-8,-9,-47,-44,-31,-36,-49,0,-52,-65,-258,-247,-1530,-1518,-29992,-29993,-29994,-29993]} 1. d4 Nf6 2. c4 e6 3. Nf3 Bb4+ 4. Bd2 Qe7 5. e3 Bxd2+ 6. Qxd2 d6 7. Nc3 O-O 8. Bd3 e5 {[#] aiming for ...e4.} 9. Bc2 {White has an edge.} Re8 10. O-O Bg4 11. Ng5 c6 12. h3 h6 13. Nge4 Nxe4 14. Nxe4 {[%cal Bc3e4,Be4g3,Bg3f5][%mdl 32]} Bf5 15. Ng3 (15. Nxd6 $5 Bxc2 16. Nxe8 $14) 15... Bxc2 16. Qxc2 exd4 17. exd4 {[%cal Of1e1]} Nd7 {[%cal Bb8d7,Bd7f8,Bf8e6,Be6g5][%mdl 32]} 18. Nf5 Qf6 19. Rfe1 Nf8 20. Rad1 Rad8 21. Qd3 Ne6 22. g3 {Prevents Nf4.} h5 23. Re3 Kf8 24. Kg2 g6 25. Nh4 Ng5 {Prevents Rf3.} (25... Nf4+ {simplifies} 26. gxf4 Qxh4 27. f5 Qg5+) 26. Rde1 Rxe3 27. Qxe3 b6 28. d5 cxd5 29. cxd5 Rc8 30. Re2 {Dodges Rc2} Rc5 (30... Rc4 $1 $15 31. Rd2 Qe7) 31. Rd2 (31. f4 $11 Nh7 32. Qe4) 31... Qe7 $15 32. Qa3 $2 {[#] Now White is beyond hope.} (32. Qxe7+ $15 Kxe7 33. Nf3 Nxf3 34. Kxf3) 32... Qe4+ $19 33. f3 $2 (33. Nf3 Rxd5 34. Rxd5 Qxd5 35. Qb3 Qxb3 36. axb3 Nxf3 37. Kxf3) 33... Qe1 34. Rf2 Rc1 {[%csl Gc1][%cal Re1h1]} ({Not} 34... Rxd5 35. Qc3 Qxc3 36. bxc3 $19) 35. Qxd6+ Kg7 {Weighted Error Value: White=0.57/Black=0.07 (flawless) .  Loses game:     	White=1     	---        Mistake:       	White=2     	Black=1      Inaccurate:     	White=4     	Black=1      OK:         	White=7     	Black=15     Best:        	---       	Black=2} 0-1

[Event "45th FIDE Womens Olympiad 2024"]
[Site "Budapest"]
[Date "2024.09.12"]
[Round "2.78"]
[White "Luong Phuong Hanh"]
[Black "O`Gorman, Alice"]
[Result "1-0"]
[ECO "D02"]
[WhiteElo "2225"]
[BlackElo "1996"]
[Annotator "ChessBase"]
[PlyCount "91"]
[EventDate "2024.09.05"]
[EventType "team-tourn"]
[EventCountry "HUN"]
[SourceTitle "playchess.com"]
[Source "ChessBase"]
[SourceQuality "1"]
[WhiteTeam "Vietnam"]
[BlackTeam "Ireland"]
[WhiteTeamCountry "VIE"]
[BlackTeamCountry "IRL"]
[TimeControl "40/5400+30:1800+30"]

1. d4 d5 2. Nf3 e6 3. Bf4 Nf6 4. e3 c5 5. c3 Nc6 6. Nbd2 Bd6 7. Bg3 O-O 8. Bd3 Re8 9. Ne5 cxd4 10. exd4 Qe7 11. O-O Bc7 12. Qe2 Nxe5 13. dxe5 Nd7 14. Nf3 f6 15. exf6 Nxf6 16. Ne5 Rb8 17. Rfe1 Bd6 18. Bh4 Rf8 19. Qc2 Bxe5 20. Rxe5 h6 21. Rae1 Qf7 22. Bg6 Qd7 23. Qe2 b5 24. h3 b4 25. Bc2 bxc3 26. bxc3 Qb5 27. Qe3 Qc4 28. Qg3 Qxa2 29. Qg6 Ne4 30. Bxe4 dxe4 31. R5xe4 Qd2 32. Qg3 Rb3 33. Be7 Rf7 34. Bb4 Qd7 35. Qh4 Qc7 36. Rc4 Qd7 37. Rd4 Rxb4 38. cxb4 Qc7 39. Rc4 Qd7 40. Rec1 Bb7 41. Qd4 Qe7 42. Qxa7 Qg5 43. Qb8+ Kh7 44. Qg3 Qd2 45. Rc7 Kg8 46. Kh2 1-0

[Event "45th FIDE Womens Olympiad 2024"]
[Site "Budapest"]
[Date "2024.09.12"]
[Round "2.79"]
[White "Mirza, Diana"]
[Black "Bach Ngoc Thuy Duong"]
[Result "1/2-1/2"]
[ECO "B91"]
[WhiteElo "1962"]
[BlackElo "2214"]
[Annotator "ChessBase"]
[PlyCount "84"]
[EventDate "2024.09.05"]
[EventType "team-tourn"]
[EventCountry "HUN"]
[SourceTitle "playchess.com"]
[Source "ChessBase"]
[SourceQuality "1"]
[WhiteTeam "Ireland"]
[BlackTeam "Vietnam"]
[WhiteTeamCountry "IRL"]
[BlackTeamCountry "VIE"]
[TimeControl "40/5400+30:1800+30"]

1. e4 c5 2. Nf3 d6 3. d4 cxd4 4. Nxd4 Nf6 5. Nc3 a6 6. g3 e5 7. Nde2 Be7 8. Bg2 Nbd7 9. Nd5 Nxd5 10. exd5 O-O 11. Be3 Nf6 12. O-O Bf5 13. Nc3 Qc8 14. Re1 b5 15. Bg5 h6 16. Bxf6 Bxf6 17. Ne4 Be7 18. a4 Bd7 19. axb5 axb5 20. Rxa8 Qxa8 21. Re3 f5 22. Nc5 Qa7 23. Nxd7 Qxd7 24. Rb3 f4 25. Qd3 fxg3 26. hxg3 Qa7 27. Qe3 Qa1+ 28. Bf1 Qd1 29. Qd3 Qg4 30. Qxb5 Qd4 31. Qe2 Qxd5 32. Qc4 Qxc4 33. Bxc4+ Kh7 34. Bd5 h5 35. Rb7 Bg5 36. Rd7 Bc1 37. b4 Ba3 38. Rxd6 Bxb4 39. Be4+ Kg8 40. Bd5+ Kh7 41. Be4+ Kg8 42. Bd5+ Kh7 1/2-1/2

[Event "45th FIDE Womens Olympiad 2024"]
[Site "Budapest"]
[Date "2024.09.12"]
[Round "2.80"]
[White "Le Thanh Tu"]
[Black "Putar, Lara"]
[Result "1-0"]
[ECO "E11"]
[WhiteElo "2092"]
[BlackElo "1911"]
[Annotator "NA"]
[PlyCount "77"]
[EventDate "2024.09.05"]
[EventType "team-tourn"]
[EventCountry "HUN"]
[SourceTitle "playchess.com"]
[Source "ChessBase"]
[SourceQuality "1"]
[WhiteTeam "Vietnam"]
[BlackTeam "Ireland"]
[WhiteTeamCountry "VIE"]
[BlackTeamCountry "IRL"]
[TimeControl "40/5400+30:1800+30"]

1. d4 Nf6 2. c4 e6 3. g3 d5 4. Nf3 Bb4+ 5. Bd2 Be7 6. Bg2 O-O 7. O-O dxc4 8. Qc2 b5 9. a4 b4 10. Ne5 Qxd4 11. Bxa8 Qxe5 12. Bf4 Qh5 13. Bf3 Ng4 14. Bxg4 Qxg4 15. Nd2 Ba6 16. Rfe1 Nc6 17. Nxc4 Nd4 18. Qe4 Bf6 19. Rac1 Nb3 20. Ne3 Qh3 21. Rxc7 e5 22. Bxe5 Nd2 23. Qg4 Qxg4 24. Nxg4 Bxe5 25. Nxe5 f6 26. Rxa7 Bc8 27. Nc6 Bh3 28. Rd1 Nc4 29. b3 Ne5 30. Nxe5 fxe5 31. Rb7 Bg4 32. f3 Bh3 33. Rxb4 g5 34. g4 h5 35. gxh5 Rc8 36. Re4 Re8 37. Rd5 g4 38. Rdxe5 Rf8 39. Re8 1-0

[Event "45th FIDE Womens Olympiad 2024"]
[Site "Budapest"]
[Date "2024.09.12"]
[Round "2.81"]
[White "Kosteniuk, Alexandra"]
[Black "Partac, Elena"]
[Result "1-0"]
[ECO "C10"]
[WhiteElo "2483"]
[BlackElo "2078"]
[Annotator "TA"]
[PlyCount "37"]
[EventDate "2024.09.05"]
[EventType "team-tourn"]
[EventCountry "HUN"]
[SourceTitle "playchess.com"]
[Source "ChessBase"]
[SourceQuality "1"]
[WhiteTeam "Switzerland"]
[BlackTeam "Moldova"]
[WhiteTeamCountry "SUI"]
[BlackTeamCountry "MDA"]
[TimeControl "40/5400+30:1800+30"]

{[%evp 9,37,56,64,23,18,-9,0,-17,0,0,0,-2,0,-30,-27,-38,-13,-22,6,-7,6,-13,127,120,118,125,302,301,566,556]} 1. e4 e6 2. d4 d5 3. Nc3 dxe4 4. Nxe4 Bd7 5. Nf3 Bc6 6. Qe2 Nd7 7. Bd2 Ngf6 8. Ng3 {The position is equal.} Bxf3 9. Qxf3 c5 10. dxc5 Bxc5 11. b4 Bd4 12. c3 {[%cal Bc2c3,Bc3c4,Bc4c5,Bc5b6][%mdl 32]} Bb6 13. Rd1 {[%cal Oa2a4]} Qc7 14. c4 {[#] Hoping for c5.} Ne5 15. Qb3 {Black must now prevent c5.} Nc6 (15... Bd4 $11 {keeps the balance.} 16. Be2 O-O) 16. c5 $16 Qe5+ 17. Be2 {[%cal Od2c3] Strongly threatening Bc3!} Nd4 $2 {[#]} (17... Bc7 $16) 18. Bc3 $18 O-O-O $2 (18... Qxe2+ 19. Nxe2 Nxb3) 19. cxb6 {Weighted Error Value: White=0.13 (very precise) /Black=0.68.  Loses game:     	---       	Black=1      Mistake:       	---       	Black=2      Inaccurate:     	White=2     	Black=1      OK:         	White=4     	Black=5      Best:        	White=2     	Black=1} 1-0

[Event "45th FIDE Womens Olympiad 2024"]
[Site "Budapest"]
[Date "2024.09.12"]
[Round "2.82"]
[White "Verbin, Valentina"]
[Black "Hakimifard, Ghazal"]
[Result "1/2-1/2"]
[ECO "E11"]
[WhiteElo "2071"]
[BlackElo "2192"]
[Annotator "ChessBase"]
[PlyCount "77"]
[EventDate "2024.09.05"]
[EventType "team-tourn"]
[EventCountry "HUN"]
[SourceTitle "playchess.com"]
[Source "ChessBase"]
[SourceQuality "1"]
[WhiteTeam "Moldova"]
[BlackTeam "Switzerland"]
[WhiteTeamCountry "MDA"]
[BlackTeamCountry "SUI"]
[TimeControl "40/5400+30:1800+30"]

1. d4 Nf6 2. c4 e6 3. g3 d5 4. Nf3 Bb4+ 5. Bd2 Be7 6. Bg2 c6 7. Qc2 Nbd7 8. O-O O-O 9. b3 Ne4 10. Nc3 Nxd2 11. Nxd2 Bf6 12. Nf3 Qa5 13. e4 e5 14. exd5 exd4 15. Ne4 cxd5 16. cxd5 Qxd5 17. Rfd1 d3 18. Nxf6+ Nxf6 19. Rxd3 Bf5 20. Rxd5 Bxc2 21. Rb5 Be4 22. Ne5 Bxg2 23. Kxg2 Rfe8 24. Nc4 b6 25. a4 Ne4 26. a5 Nc3 27. Rf5 bxa5 28. Rfxa5 Rab8 29. Rxa7 Rxb3 30. Re1 Rbb8 31. Rxe8+ Rxe8 32. Nd6 Rf8 33. Ra5 g6 34. Kf3 Rd8 35. Rc5 Rxd6 36. Rxc3 Kg7 37. g4 h6 38. h4 Rd5 39. Rc6 1/2-1/2

[Event "45th FIDE Womens Olympiad 2024"]
[Site "Budapest"]
[Date "2024.09.12"]
[Round "2.83"]
[White "Hryzlova, Sofiia"]
[Black "Mihailova, Alina"]
[Result "1-0"]
[ECO "D35"]
[WhiteElo "2188"]
[BlackElo "1969"]
[Annotator "ChessBase"]
[PlyCount "65"]
[EventDate "2024.09.05"]
[EventType "team-tourn"]
[EventCountry "HUN"]
[SourceTitle "playchess.com"]
[Source "ChessBase"]
[SourceQuality "1"]
[WhiteTeam "Switzerland"]
[BlackTeam "Moldova"]
[WhiteTeamCountry "SUI"]
[BlackTeamCountry "MDA"]
[TimeControl "40/5400+30:1800+30"]

1. d4 d5 2. c4 e6 3. Nc3 Nf6 4. cxd5 exd5 5. Bg5 Be7 6. e3 O-O 7. Bd3 Re8 8. Nge2 c6 9. O-O h6 10. Bh4 a5 11. f3 b5 12. Rc1 Nbd7 13. Bf2 Nb6 14. Ng3 Bd7 15. Kh1 Rc8 16. e4 dxe4 17. fxe4 b4 18. Nce2 Ng4 19. Bg1 Bg5 20. Nf4 Nf6 21. Rc5 Ra8 22. Qf3 Rf8 23. Nf5 Na4 24. Rc2 Bxf5 25. exf5 Bxf4 26. Qxf4 Nd5 27. Qc1 Rc8 28. Be4 Qd7 29. f6 Qd6 30. fxg7 Kxg7 31. h3 Nab6 32. Bf5 Rce8 33. Rxc6 1-0

[Event "45th FIDE Womens Olympiad 2024"]
[Site "Budapest"]
[Date "2024.09.12"]
[Round "2.84"]
[White "Bargan, Victoria"]
[Black "Manko, Mariia"]
[Result "0-1"]
[ECO "D38"]
[WhiteElo "1941"]
[BlackElo "2159"]
[Annotator "ChessBase"]
[PlyCount "80"]
[EventDate "2024.09.05"]
[EventType "team-tourn"]
[EventCountry "HUN"]
[SourceTitle "playchess.com"]
[Source "ChessBase"]
[SourceQuality "1"]
[WhiteTeam "Moldova"]
[BlackTeam "Switzerland"]
[WhiteTeamCountry "MDA"]
[BlackTeamCountry "SUI"]
[TimeControl "40/5400+30:1800+30"]

1. d4 Nf6 2. c4 e6 3. Nc3 d5 4. cxd5 exd5 5. Bg5 Bb4 6. e3 h6 7. Bxf6 Qxf6 8. Nf3 O-O 9. Qb3 c5 10. Be2 Nc6 11. O-O c4 12. Qc2 Bf5 13. Qa4 Rfd8 14. a3 Bxc3 15. bxc3 a6 16. Ra2 b5 17. Qd1 a5 18. Qa1 Rab8 19. Nd2 Qg6 20. Bf3 b4 21. Re1 Bd3 22. axb4 axb4 23. Ra6 b3 24. Qb2 Ra8 25. Rea1 Rxa6 26. Rxa6 Qe6 27. Nb1 f5 28. g3 f4 29. e4 dxe4 30. Bh1 f3 31. Nd2 Kh7 32. h4 Qc8 33. Ra4 Nxd4 34. Nxc4 Ne2+ 35. Kh2 Bxc4 36. Bxf3 exf3 37. Qb1+ Kh8 38. Qe4 Ng1 39. g4 Qc7+ 40. Kh1 Nh3 0-1

[Event "45th FIDE Womens Olympiad 2024"]
[Site "Budapest"]
[Date "2024.09.12"]
[Round "2.85"]
[White "Noshin, Anjum"]
[Black "Bulmaga, Irina"]
[Result "1/2-1/2"]
[ECO "B90"]
[WhiteElo "2085"]
[BlackElo "2406"]
[Annotator "TA"]
[PlyCount "110"]
[EventDate "2024.09.05"]
[EventType "team-tourn"]
[EventCountry "HUN"]
[SourceTitle "playchess.com"]
[Source "ChessBase"]
[SourceQuality "1"]
[WhiteTeam "Bangladesh"]
[BlackTeam "Romania"]
[WhiteTeamCountry "BAN"]
[BlackTeamCountry "ROU"]
[TimeControl "40/5400+30:1800+30"]

{[%evp 19,110,29,27,33,34,-40,-34,-34,-25,-30,-25,-38,-30,-44,0,0,0,-25,10,-55,-54,-72,-53,-102,-51,-82,-71,-81,-80,-95,-85,-92,-49,-114,-117,-110,-110,-91,-55,-61,34,-16,0,-16,-18,-20,-36,-21,-20,-64,-67,-64,-65,-75,-14,-15,-27,-33,-29,-35,-40,-68,-63,-128,-36,-35,-35,-52,-8,-8,-8,-8,-8,-22,-14,-30,0,0,0,0,0,0,0,0,0,0,0,0,0,0,0,0,0]} 1. e4 c5 2. Nf3 d6 3. d4 cxd4 4. Nxd4 Nf6 5. Nc3 a6 6. f3 e5 7. Nb3 Be6 8. Be3 Nbd7 9. g4 Nb6 10. g5 Nh5 11. Qd2 Be7 12. Nd5 (12. O-O-O $14) 12... Nxd5 13. exd5 {Black is slightly better.} Bf5 14. Rg1 O-O 15. O-O-O Rc8 16. Bd3 Bxd3 17. Qxd3 b5 18. Qd2 f5 19. gxf6 (19. g6 $11) 19... Rxf6 $15 20. Qg2 Qc7 21. Rd2 (21. c3 $15 {feels stronger.} Qd7 22. Nd2) 21... Rg6 (21... Rcf8 $17 {[%cal Of6g6]} 22. Rf1 Bd8) 22. Qf1 Qc4 23. Kb1 Qxf1+ 24. Rxf1 Rf8 25. Na5 {[%cal Oa2a4]} Bh4 26. a4 Rgf6 $17 27. axb5 axb5 (27... Rxf3 $2 {perishes.} 28. Rxf3 Rxf3 29. bxa6 $18) 28. c4 bxc4 29. Nxc4 e4 {[#]} ({But not} 29... Rxf3 30. Rxf3 Rxf3 31. b4 $11) (29... Nf4 $15) 30. f4 $1 Bg5 {[%cal Rg5f4]} (30... Nxf4 31. Nxd6) 31. Rd4 Nxf4 32. Rxe4 Nxd5 33. Rxf6 Nxf6 34. Rd4 Bxe3 35. Nxe3 $15 {[%mdl 4096] Endgame. KRN-KRN} Re8 36. Nd5 Ne4 ({Black should play} 36... Nxd5 $17 37. Rxd5 Re6) 37. b4 Kf7 38. Kb2 g5 39. b5 Nc5 {...Re2+ is the strong threat.} 40. b6 Re2+ 41. Kc3 ({Better is} 41. Kb1 $15) 41... Ke6 (41... Rxh2 $17 {...Rh4 would now be deadly.} 42. Rb4 Rh3+ 43. Kc4 Ke6) 42. Nc7+ Kd7 43. h4 h6 44. hxg5 hxg5 45. Nb5 Re6 46. Rg4 Re5 {Black wants to play ...Ne4+.} 47. Nd4 (47. Na7 $5) 47... Ne4+ 48. Kb4 {The position is equal.} Nf6 49. b7 Re8 50. Rxg5 {Rg7+ would kill now.} Kc7 51. Rg7+ Kb6 $1 52. Rf7 Nd5+ 53. Kc4 Nc7 54. Rf6 Kxb7 55. Rxd6 Re5 {Weighted Error Value: White=0.17 (very precise) /Black=0.17 (very precise) .  Mistake:       	White=6     	Black=4      Inaccurate:     	White=3     	Black=6      OK:         	White=15    	Black=14     Best:        	---       	Black=2      Strong:       	---       	Black=1} 1/2-1/2

[Event "45th FIDE Womens Olympiad 2024"]
[Site "Budapest"]
[Date "2024.09.12"]
[Round "2.86"]
[White "Voicu-Jagodzinsky, Carmen"]
[Black "Ahmed, Walijah"]
[Result "1-0"]
[ECO "B48"]
[WhiteElo "2271"]
[BlackElo "1936"]
[Annotator "ChessBase"]
[PlyCount "43"]
[EventDate "2024.09.05"]
[EventType "team-tourn"]
[EventCountry "HUN"]
[SourceTitle "playchess.com"]
[Source "ChessBase"]
[SourceQuality "1"]
[WhiteTeam "Romania"]
[BlackTeam "Bangladesh"]
[WhiteTeamCountry "ROU"]
[BlackTeamCountry "BAN"]
[TimeControl "40/5400+30:1800+30"]

1. e4 c5 2. Nf3 e6 3. d4 cxd4 4. Nxd4 Nc6 5. Nc3 Qc7 6. Be3 a6 7. a3 b5 8. Nxc6 Qxc6 9. Bd3 Bb7 10. Qd2 Rc8 11. O-O Nf6 12. Rae1 Be7 13. f4 Ng4 14. Bd4 Bc5 15. Bxc5 Qxc5+ 16. Kh1 d6 17. Be2 Nf6 18. e5 dxe5 19. fxe5 Nd7 20. Rxf7 Rd8 21. Rxg7 Qxe5 22. Qh6 1-0

[Event "45th FIDE Womens Olympiad 2024"]
[Site "Budapest"]
[Date "2024.09.12"]
[Round "2.87"]
[White "Nusrat Jahan, Alo"]
[Black "Lehaci, Miruna-Daria"]
[Result "0-1"]
[ECO "B22"]
[WhiteElo "2033"]
[BlackElo "2180"]
[Annotator "ChessBase"]
[PlyCount "82"]
[EventDate "2024.09.05"]
[EventType "team-tourn"]
[EventCountry "HUN"]
[SourceTitle "playchess.com"]
[Source "ChessBase"]
[SourceQuality "1"]
[WhiteTeam "Bangladesh"]
[BlackTeam "Romania"]
[WhiteTeamCountry "BAN"]
[BlackTeamCountry "ROU"]
[TimeControl "40/5400+30:1800+30"]

1. e4 c5 2. c3 Nf6 3. e5 Nd5 4. Nf3 e6 5. d4 cxd4 6. cxd4 Nc6 7. Bc4 Nb6 8. Bb5 a6 9. Be2 Be7 10. Nc3 d6 11. Be3 Nb4 12. O-O N4d5 13. Ne4 Nxe3 14. fxe3 d5 15. Ned2 Bd7 16. Qe1 Bb5 17. Bxb5+ axb5 18. Qe2 Nc4 19. a4 O-O 20. axb5 Nxb2 21. Nb3 Nc4 22. Rxa8 Qxa8 23. Ra1 Qe8 24. Nfd2 Qxb5 25. Rb1 Qa4 26. Ra1 Qb4 27. Rb1 Bg5 28. Nxc4 Qxc4 29. Kf2 Qc7 30. Nc5 b6 31. Na4 f6 32. Kg1 fxe5 33. h3 Qc6 34. Nb2 exd4 35. exd4 Bf6 36. Qe3 Qc2 37. Qxe6+ Kh8 38. Re1 Qxb2 39. Qf7 Qb4 40. Re8 Bxd4+ 41. Kh2 Bc5 0-1

[Event "45th FIDE Womens Olympiad 2024"]
[Site "Budapest"]
[Date "2024.09.12"]
[Round "2.88"]
[White "Ciolacu, Alessia-Mihaela"]
[Black "Wadifa, Ahmed"]
[Result "1/2-1/2"]
[ECO "D37"]
[WhiteElo "2160"]
[BlackElo "1988"]
[Annotator "ChessBase"]
[PlyCount "109"]
[EventDate "2024.09.05"]
[EventType "team-tourn"]
[EventCountry "HUN"]
[SourceTitle "playchess.com"]
[Source "ChessBase"]
[SourceQuality "1"]
[WhiteTeam "Romania"]
[BlackTeam "Bangladesh"]
[WhiteTeamCountry "ROU"]
[BlackTeamCountry "BAN"]
[TimeControl "40/5400+30:1800+30"]

1. d4 d5 2. c4 e6 3. Nc3 Nf6 4. Nf3 Nbd7 5. Bf4 a6 6. cxd5 exd5 7. e3 c6 8. h3 Be7 9. Bd3 O-O 10. Qc2 h6 11. Bh2 Ne8 12. O-O Bd6 13. Bxd6 Nxd6 14. b4 Nb6 15. a4 Qf6 16. Nd2 Bd7 17. Nb3 Nbc4 18. Nc5 Qe7 19. Rfe1 f5 20. b5 axb5 21. axb5 Rxa1 22. Rxa1 Nxb5 23. Nxb7 f4 24. Nxb5 cxb5 25. exf4 Rxf4 26. Nc5 Bc6 27. Nb3 Rf8 28. Nd2 Rxf2 29. Bxc4 Qe3 30. Nf1 Rxf1+ 31. Kxf1 dxc4 32. Rd1 Be4 33. Qf2 Bd3+ 34. Kg1 Qxf2+ 35. Kxf2 Kf7 36. Ke3 Ke6 37. Ra1 b4 38. Ra4 b3 39. Rb4 g6 40. Kd2 Kd5 41. Kc3 h5 42. Rb5+ Kc6 43. Rc5+ Kd6 44. Re5 Bf1 45. Rg5 Bd3 46. Ra5 Kc6 47. g3 Kd6 48. Rc5 Ke6 49. h4 Kd6 50. Rc8 Kd7 51. Rf8 Kd6 52. Rd8+ Ke7 53. Rb8 Kd6 54. Rd8+ Kc6 55. Rc8+ 1/2-1/2

[Event "45th FIDE Womens Olympiad 2024"]
[Site "Budapest"]
[Date "2024.09.12"]
[Round "2.89"]
[White "Tsolakidou, Stavroula"]
[Black "Pipiras, Filipa Fortuna"]
[Result "1/2-1/2"]
[ECO "B45"]
[WhiteElo "2444"]
[BlackElo "2187"]
[Annotator "TA"]
[PlyCount "104"]
[EventDate "2024.09.05"]
[EventType "team-tourn"]
[EventCountry "HUN"]
[SourceTitle "playchess.com"]
[Source "ChessBase"]
[SourceQuality "1"]
[WhiteTeam "Greece"]
[BlackTeam "Portugal"]
[WhiteTeamCountry "GRE"]
[BlackTeamCountry "POR"]
[TimeControl "40/5400+30:1800+30"]

{[%evp 23,104,21,18,25,30,27,22,26,21,14,13,13,38,27,56,60,73,73,76,76,79,56,72,50,52,63,77,61,65,30,33,27,70,67,60,39,60,42,49,45,42,29,38,32,61,30,47,14,5,8,11,0,0,0,0,0,0,0,0,0,0,-13,-22,-23,-15,-25,-26,-29,-11,-9,-9,-15,-12,-18,0,0,0,0,0,0,0,0,0]} 1. e4 c5 2. Nf3 Nc6 3. d4 cxd4 4. Nxd4 Nf6 5. Nc3 e6 {[%cal Be7e6,Be6d5,Bd5d4][%mdl 32]} 6. Ndb5 Bb4 7. a3 Bxc3+ 8. Nxc3 d5 9. exd5 exd5 10. Bd3 O-O 11. O-O d4 12. Ne2 Bg4 13. h3 Bxe2 14. Bxe2 Qb6 15. Qd3 Rfe8 16. Bf4 a6 17. Rad1 Nd5 {[%cal Bf6d5,Bd5c7,Bc7e6][%mdl 32]} 18. Bc1 Rad8 19. Rfe1 h6 20. Qg3 Qc7 21. Qxc7 (21. Bxh6 $2 {loses.} Qxg3 22. fxg3 gxh6 $19) 21... Nxc7 22. Bf3 Ne6 23. b4 Re7 24. Bg4 Rf8 25. Bb2 {White is more active.} Rd8 26. Re4 Kf8 27. Rde1 Nc7 28. Rxe7 Nxe7 29. Bf3 Nc6 30. Rd1 Ne6 31. g3 Ke7 32. Bg2 g5 33. Kf1 Rd7 34. Be4 Ne5 35. Bf5 Nc4 36. Bc1 b5 37. Re1 Kf6 38. Be4 Rc7 39. Kg2 a5 40. Rh1 axb4 41. axb4 Ra7 42. Bc6 Ra2 43. Bxb5 Rxc2 44. Ba4 Rc3 45. Rd1 Nb6 46. Bb5 {The position is equal.} Rb3 47. Bd2 Rb2 48. Kf3 Nd5 49. Bc4 Nc3 50. Bxc3 dxc3 51. Bxe6 Kxe6 (51... c2 $5 52. Rc1 $8 Kxe6 $11) 52. Rc1 Rxb4 {Weighted Error Value: White=0.06 (flawless) /Black=0.06 (flawless) .  Inaccurate:     	White=3     	Black=3      OK:         	White=17    	Black=16     Best:        	White=2     	---} 1/2-1/2

[Event "45th FIDE Womens Olympiad 2024"]
[Site "Budapest"]
[Date "2024.09.12"]
[Round "2.90"]
[White "Silva, Mariana"]
[Black "Avramidou, Anastasia"]
[Result "1/2-1/2"]
[ECO "E62"]
[WhiteElo "2005"]
[BlackElo "2290"]
[Annotator "ChessBase"]
[PlyCount "77"]
[EventDate "2024.09.05"]
[EventType "team-tourn"]
[EventCountry "HUN"]
[SourceTitle "playchess.com"]
[Source "ChessBase"]
[SourceQuality "1"]
[WhiteTeam "Portugal"]
[BlackTeam "Greece"]
[WhiteTeamCountry "POR"]
[BlackTeamCountry "GRE"]
[TimeControl "40/5400+30:1800+30"]

1. d4 g6 2. c4 Bg7 3. Nf3 Nf6 4. Nc3 d6 5. g3 Bf5 6. Bg2 Ne4 7. Nd5 c6 8. Ne3 Bc8 9. O-O O-O 10. Qd3 d5 11. b3 a5 12. Bb2 e6 13. Nd1 Na6 14. a3 a4 15. b4 Nd6 16. Nd2 Nc7 17. e4 dxe4 18. Nxe4 Nf5 19. d5 exd5 20. cxd5 cxd5 21. Bxg7 Nxg7 22. Nec3 Bf5 23. Qd2 d4 24. Ne2 Re8 25. Bxb7 Rb8 26. Bg2 Nb5 27. Nb2 d3 28. Nc1 Qd4 29. Ncxd3 Red8 30. Rfd1 Nc3 31. Rdc1 Rbc8 32. Bf1 Ne6 33. Qe3 Qxe3 34. fxe3 Ng5 35. Kf2 Nce4+ 36. Kg1 Nc3 37. Kf2 Nce4+ 38. Kg1 Nc3 39. Kf2 1/2-1/2

[Event "45th FIDE Womens Olympiad 2024"]
[Site "Budapest"]
[Date "2024.09.12"]
[Round "2.91"]
[White "Pavlidou, Ekaterini"]
[Black "Silva, Ana Ines Teixeira Da"]
[Result "1-0"]
[ECO "D36"]
[WhiteElo "2141"]
[BlackElo "1925"]
[Annotator "NA"]
[PlyCount "93"]
[EventDate "2024.09.05"]
[EventType "team-tourn"]
[EventCountry "HUN"]
[SourceTitle "playchess.com"]
[Source "ChessBase"]
[SourceQuality "1"]
[WhiteTeam "Greece"]
[BlackTeam "Portugal"]
[WhiteTeamCountry "GRE"]
[BlackTeamCountry "POR"]
[TimeControl "40/5400+30:1800+30"]

1. d4 d5 2. c4 e6 3. Nc3 Nf6 4. cxd5 exd5 5. Bg5 c6 6. e3 h6 7. Bh4 Be7 8. Bd3 O-O 9. Qc2 Re8 10. Nge2 Nbd7 11. O-O a5 12. a3 b5 13. Rfc1 Ba6 14. h3 Qb8 15. Bg3 Qb7 16. Bf5 Nb6 17. Nf4 Nc4 18. Nd3 g6 19. Bg4 Nxg4 20. hxg4 Qd7 21. Qd1 Bc8 22. b3 Nxa3 23. Ne5 Qe6 24. Ne2 Bb7 25. Nf4 Qf6 26. Nfd3 a4 27. Nd7 Qg7 28. N7c5 Bxc5 29. Nxc5 axb3 30. Qxb3 Bc8 31. Rxa3 Bxg4 32. Rca1 Rac8 33. Ra7 h5 34. Be5 Rxe5 35. dxe5 Qxe5 36. Ra8 Kg7 37. Nd3 Qf6 38. Qb4 Qg5 39. Qd4+ Kh7 40. Rxc8 Bxc8 41. Ra8 Qf5 42. Ne5 c5 43. Qxd5 Be6 44. Qxc5 b4 45. Qd4 Qf6 46. Nf3 Qxd4 47. Nxd4 1-0